Cogmind - Beta 15 @@@ ROGUE MODE // 2025.06.12 @ 20:51:57 Player: the Result: Self-destructed Performance ------------- Evolutions (2) 1000 Regions Visited (5) 1000 Robots Destroyed (84) 420 Value Destroyed (1699) 1699 Prototype IDs (2) 40 Alien Tech Used (0) 0 Bonus (40) 40 TOTAL SCORE: 4199 Bonus ------- High Alert Combat Kills 40 Cogmind --------- Core Integrity 285/550 Matter 199/300 Energy 100/100 System Corruption 0% Temperature Cool (35) Movement Core (1350) Ox26 Location -8/Materials Parts ------- > --- POWER (2) -------- (None) > --- PROPULSION (2) --- (None) > --- UTILITY (5) ------ Huge Storage Unit Experimental Sensor Array > --- WEAPON (2) ------- (None) > --- INVENTORY (25) --- Improved Ion Engine Wheel High-capacity Storage Unit High-capacity Matter Pod (200) Structural Scanner Seismic Detector Medium Armor Plating Shield Generator Hacking Suite Tractor Beam Trap Extractor (0/4) Medium Laser Medium Laser Spread Laser Particle Cannon Mining Laser Peak State ------------ > --- POWER ------------ Improved Ion Engine Reinforced Ion Engine > --- PROPULSION ------- Wheel Wheel > --- UTILITY ---------- Huge Storage Unit Structural Scanner Experimental Sensor Array Seismic Detector Medium Armor Plating > --- WEAPON ----------- Heavy Particle Gun Rocket Launcher > --- INVENTORY -------- Improved Ion Engine Wheel Wheel Wheel Wheel High-capacity Storage Unit High-capacity Matter Pod High-capacity Matter Pod Structural Scanner Seismic Detector Medium Armor Plating Medium Armor Plating Shield Generator Hacking Suite Tractor Beam Trap Extractor Medium Laser Medium Laser Particle Cannon Particle Cannon Minigun Rocket Launcher Rocket Launcher Rocket Launcher Mining Laser [Rating: 29] Favorites ----------- Power Ion Engine Engine Ion Engine Power Core Light Nuclear Core Propulsion Wheel Wheel Wheel Utility Huge Storage Unit Device Tractor Beam Storage Huge Storage Unit Protection Medium Armor Plating Weapon Autogun Energy Gun EM Pulse Gun Ballistic Gun Autogun Launcher Rocket Launcher Special Weapon Mining Laser Build | -11 -10 -10 -10 -9 -8 ------- Run | Yrd Mat Min Exi Min Mat Slots Evolved 4 | . . . . . 4 Power 1 | . . . . . 1 Propulsion . | . . . . . . Utility 3 | . . . . . 3 Weapon . | . . . . . . Parts Attached 48 | 7 21 5 . 3 12 Power 6 | 1 2 1 . 1 1 Engine 5 | 1 1 1 . 1 1 Core 1 | . 1 . . . . Reactor . | . . . . . . Propulsion 12 | 2 7 2 . . 1 Treads . | . . . . . . Leg . | . . . . . . Wheel 12 | 2 7 2 . . 1 Hover . | . . . . . . Flight . | . . . . . . Utility 14 | 2 6 2 . 1 3 Device 6 | 1 2 2 . . 1 Storage 5 | 1 3 . . . 1 Processor . | . . . . . . Hackware . | . . . . . . Protection 3 | . 1 . . 1 1 Artifact . | . . . . . . Weapon 16 | 2 6 . . 1 7 Energy Gun 4 | 2 . . . . 2 Energy Cannon . | . . . . . . Ballistic Gun 6 | . 4 . . . 2 Ballistic Cannon . | . . . . . . Launcher 5 | . 1 . . 1 3 Special Weapon 1 | . 1 . . . . Impact Weapon . | . . . . . . Slashing Weapon . | . . . . . . Piercing Weapon . | . . . . . . Special Melee Weapon . | . . . . . . Unidentified Prototypes 2 | . . 1 . . 1 Parts Lost 24 | . 2 2 . 2 18 Power 3 | . . 1 . . 2 Propulsion 6 | . 1 . . . 5 Utility 8 | . 1 1 . 1 5 Weapon 7 | . . . . 1 6 Highest Loss Streak 17 | . 2 1 . 1 17 To Critical Strikes . | . . . . . . Average Backups 20 | 4 15 24 25 24 23 Power . | . 1 . . . 1 Propulsion 5 | 2 3 7 8 6 3 Utility 8 | . 5 10 10 11 10 Weapon 6 | 1 5 7 6 5 8 Tool/Special . | . . . . . . Unused Backups 21 | . 4 . . 4 13 Power 1 | . . . . . 1 Propulsion 8 | . 2 . . 4 2 Utility 8 | . 1 . . . 7 Weapon 4 | . 1 . . . 3 Tool/Special . | . . . . . . Average Slot Usage (%) 98 | . 98 99 100 100 93 Engine 11 | . 7 11 14 14 16 Core 3 | . 6 2 . . . Wheel 27 | . 27 28 28 28 16 Device 12 | . 12 12 14 8 24 Storage 13 | . 14 14 14 14 9 Protection 2 | . . 1 . 5 8 Ballistic Gun 16 | . 21 14 14 14 9 Launcher 9 | . 4 14 14 14 5 Peak Build Rating 29 | 7 14 20 13 21 29 Average Rating 13 | 5 11 12 13 17 26 On Entrance 11 | . 7 14 13 13 21 Naked Turns . | . . . . . . Heaviest Build 114 | 13 93 99 93 99 114 Greatest Support 26 | 26 26 20 20 20 20 Greatest Overweight (x) 11 | . 5 4 4 4 11 Average Overweight (x) 3 | . 3 4 4 4 5 Largest Inventory Capacity 25 | 8 25 25 25 25 25 Average Capacity 23 | 7 22 25 25 25 25 Most Carried 25 | 7 25 25 25 25 25 Average Carried 20 | 4 15 24 25 24 23 Final Capacity 25 | 8 25 25 25 25 25 Final Carried 25 | 7 25 25 25 25 16 Class Distribution -------------------- 81% | Mutant 18% | Scavenger-Mutant Dominant Class ---------------- Mutant | -10/Materials Mutant | -10/Mines Mutant | -10/Exiles Mutant | -9/Mines Mutant | -8/Materials Resources | -11 -10 -10 -10 -9 -8 ----------- Run | Yrd Mat Min Exi Min Mat Matter Collected 2368 | 270 1381 459 . 178 80 Remotely 718 | . 272 419 . 27 . Salvage Created 2287 | 159 1258 486 . 101 283 Parts 149 | 14 82 21 . 6 26 Haulers Intercepted 3 | . 2 . . . 1 Recyclers Shooed 5 | 1 3 1 . . . Parts Field Recycled . | . . . . . . Retrieved Matter . | . . . . . . Parts Self-Destructed . | . . . . . . Prevented . | . . . . . . Kills | -11 -10 -10 -10 -9 -8 ------- Run | Yrd Mat Min Exi Min Mat Combat Hostiles Destroyed 43 | . 25 5 . 3 10 Guns 8 | . 5 . . . 3 AOE 35 | . 20 5 . 3 7 Classes Destroyed 12 | 2 6 1 . . 3 Worker 11 | . 4 2 . 1 4 Builder 2 | . . 2 . . . Tunneler 10 | 4 4 2 . . . Hauler 3 | . 2 . . . 1 Recycler 11 | 1 4 5 . 1 . Operator 1 | . 1 . . . . Watcher 3 | . 3 . . . . Swarmer 11 | . 3 3 . 1 4 Grunt 28 | . 22 2 . 2 2 Duelist 1 | . . . . . 1 Sentry 2 | . . . . . 2 Specialist 1 | . . . . . 1 Best Kill Streak 9 | 3 9 3 . 2 9 Combat Bots Only 6 | . 6 3 . 2 4 Max Kills in Single Turn 3 | 1 3 3 . 2 2 Gunslinging . | . . . . . . Exploded 3 | . 3 1 . 2 2 Melee . | . . . . . . Uniques/NPCs Destroyed . | . . . . . . Combat | -11 -10 -10 -10 -9 -8 -------- Run | Yrd Mat Min Exi Min Mat Hostile Shots Fired 171 | . 43 9 . 5 114 Missed 42 | . 12 6 . 1 23 Hits 129 | . 31 3 . 4 91 Projectile 129 | . 31 3 . 4 91 Critical Strikes 5 | . . . . . 5 Damage Taken 2504 | . 492 203 . 122 1687 Core 360 | . 59 36 . . 265 Absorbed by Shields . | . . . . . . Regen/Repaired (Parts) 40 | . 40 . . . . Core Remaining (%) 81 | 100 . . . 62 . Volleys Fired 195 | 28 103 31 . 8 25 Largest 2 | 1 2 1 . 1 2 Hottest 100 | 50 100 33 . 33 66 Shots Fired 269 | 28 162 31 . 8 40 Gun 187 | 28 127 5 . . 27 Cannon . | . . . . . . Launcher 79 | . 32 26 . 8 13 Special 3 | . 3 . . . . Kinetic 158 | . 126 5 . . 27 Thermal 32 | 28 4 . . . . Explosive 79 | . 32 26 . 8 13 Electromagnetic . | . . . . . . Robot Hit Streak 14 | 14 9 3 . 1 6 Robot Miss Streak 5 | 2 5 2 . 1 2 Penetration Max . | . . . . . . Secondary Targets 2 | . 1 . . . 1 Max Gunslinging Chain 1 | . 1 . . . 1 Shots Hit Robots 147 | 23 85 13 . 1 25 Core Hits 116 | 6 56 21 . 7 26 Critical Kills 1 | . 1 . . . . Critical Parts Destroyed 3 | . 3 . . . . Critical Strikes 7 | 3 4 . . . . Burn 3 | 3 . . . . . Destroy 4 | . 4 . . . . Melee Attacks . | . . . . . . Impact . | . . . . . . Slashing . | . . . . . . Piercing . | . . . . . . Sneak Attacks . | . . . . . . Combat Hostiles . | . . . . . . Follow-up Attacks . | . . . . . . Damage Inflicted 5851 | 290 2676 1021 . 234 1630 Guns 1710 | 290 1082 45 . . 293 Cannons . | . . . . . . Explosions 4141 | . 1594 976 . 234 1337 Melee . | . . . . . . Ramming . | . . . . . . Kinetic 1420 | . 1082 45 . . 293 Thermal 589 | 290 . . . . 299 Explosive 3779 | . 1594 976 . 234 975 Electromagnetic 63 | . . . . . 63 Impact . | . . . . . . Slashing . | . . . . . . Piercing . | . . . . . . Highest Corruption . | . . . . . . Average Corruption . | . . . . . . Corruption Purged . | . . . . . . Corruption Blocked . | . . . . . . Overload Shots . | . . . . . . Overflow Damage 353 | . 99 70 . 12 172 Projectiles . | . . . . . . Explosions 353 | . 99 70 . 12 172 Melee . | . . . . . . Knockbacks . | . . . . . . Impact . | . . . . . . Kinetic . | . . . . . . Secondary . | . . . . . . Self-Inflicted Damage 589 | . 124 178 . 76 211 Shots 14 | . 3 6 . 2 3 Rammed . | . . . . . . Targets Rammed . | . . . . . . Kicked . | . . . . . . Crushed . | . . . . . . Highest Temperature 110 | 80 40 16 . 2 110 Average Temperature 22 | 31 9 6 . 2 42 Received Heat Transfer 441 | . 183 6 . 27 225 Siege Activations . | . . . . . . Martial Activations . | . . . . . . Shielding Activations . | . . . . . . Robots Disrupted . | . . . . . . Combat Hostiles . | . . . . . . Robots Corrupted . | . . . . . . Combat Hostiles . | . . . . . . Parts Fried . | . . . . . . Impact Corruptions . | . . . . . . Robots Melted . | . . . . . . Combat Hostiles . | . . . . . . Parts Melted 2 | 2 . . . . . Heat Transferred 1373 | 1073 . . . . 300 Parts Sabotaged . | . . . . . . Parts Stolen . | . . . . . . Parts Stripped . | . . . . . . Power Chain Reactions 1 | . . . . . 1 Alert | -11 -10 -10 -10 -9 -8 ------- Run | Yrd Mat Min Exi Min Mat Maximum Alert Level 2 | . 2 1 . . 1 Low Security (%) 52 | 100 25 49 . 100 89 Level 1 22 | . 23 50 . . 10 Level 2 25 | . 50 . . . . Level 3 . | . . . . . . Level 4 . | . . . . . . Level 5 . | . . . . . . High Security . | . . . . . . Max Security . | . . . . . . Peak Influence 507 | 5 507 313 . 63 237 Initial 151 | . 3 151 . . . Average 203 | 2 316 205 . 10 55 Influence Increases 2017 | 25 964 368 . 184 476 Destroy 0b10 Robot/C 860 | . 500 100 . 60 200 Destroy 0b10 Robot/NC 205 | 25 90 55 . 10 25 Destroy Leader 192 | . 110 20 . 20 42 Successful Hack 23 | . 17 . . . 6 Disable Machine 180 | . 45 30 . 30 75 Destroy Structure 527 | . 187 163 . 64 113 Lose Combat Pursuer 30 | . 15 . . . 15 Influence Decreases 1807 | 20 581 619 137 184 266 Entered New Map 376 | . 2 237 137 . . Time Decay 1191 | 20 559 362 . 164 86 Lost Part 240 | . 20 20 . 20 180 Squads Dispatched 9 | . 6 . . . 3 Investigation 3 | . 3 . . . . Extermination . | . . . . . . Reinforcement 6 | . 3 . . . 3 Assault . | . . . . . . Garrison . | . . . . . . Intercept . | . . . . . . Searches Triggered . | . . . . . . Construction Impeded 1 | . . . . . 1 Haulers Reinforced . | . . . . . . Active Scanning Responses . | . . . . . . Cargo Convoy Interrupts . | . . . . . . Stealth | -11 -10 -10 -10 -9 -8 --------- Run | Yrd Mat Min Exi Min Mat Distress Signals 1 | . 1 . . . . Communications Jammed . | . . . . . . Distress Signals . | . . . . . . Times Spotted 53 | . 31 4 . 3 15 Peak Tracking Total 8 | . 4 2 . 2 8 Tactical Retreats 2 | . 1 . . . 1 Traps | -11 -10 -10 -10 -9 -8 ------- Run | Yrd Mat Min Exi Min Mat Traps Triggered 3 | . 3 . . . . Indirectly . | . . . . . . Trap Hack Attempts . | . . . . . . Triggered . | . . . . . . Disarmed . | . . . . . . Reprogrammed . | . . . . . . Reused . | . . . . . . Traps Extracted . | . . . . . . Installed . | . . . . . . Triggered . | . . . . . . Machines | -11 -10 -10 -10 -9 -8 ---------- Run | Yrd Mat Min Exi Min Mat Machines Disabled 12 | . 3 2 . 2 5 Max in Single Turn 2 | . 1 1 . 2 2 Machines Repaired . | . . . . . . Machines Dismantled . | . . . . . . Machines Sabotaged . | . . . . . . Overloaded Fab Kills . | . . . . . . Hacking | -11 -10 -10 -10 -9 -8 --------- Run | Yrd Mat Min Exi Min Mat Machines Accessed 13 | . 8 . 4 . 1 Terminals 5 | . 5 . . . . Fabricators . | . . . . . . Repair Stations 1 | . 1 . . . . Recycling Units 3 | . 2 . . . 1 Scanalyzers . | . . . . . . Garrison Access . | . . . . . . Total Hacks 24 | . 19 . 4 . 1 Successful 14 | . 9 . 4 . 1 Failed 10 | . 10 . . . . Catastrophic 3 | . 3 . . . . Database Lockouts . | . . . . . . Manual 10 | . 7 . 2 . 1 Terminals 11 | . 11 . . . . Fabricators . | . . . . . . Repair Stations 4 | . 4 . . . . Recycling Units 5 | . 4 . . . 1 Scanalyzers . | . . . . . . Garrison Access . | . . . . . . Terminal Hacks 6 | . 2 . 4 . . Record 4 | . . . 4 . . Zone Layout 2 | . 2 . . . . Fabricator Hacks . | . . . . . . Repair Station Hacks 3 | . 3 . . . . Scan Component 2 | . 2 . . . . Repair 1 | . 1 . . . . Recycling Unit Hacks 1 | . 1 . . . . Retrieve Matter 1 | . 1 . . . . Scanalyzer . | . . . . . . Garrison Access Hacks . | . . . . . . Unauthorized Hacks 4 | . 3 . . . 1 Terminals 2 | . 2 . . . . Botnet 2 | . 2 . . . . Fabricators . | . . . . . . Repair Stations . | . . . . . . Recycling Units 2 | . 1 . . . 1 Mask 2 | . 1 . . . 1 Scanalyzers . | . . . . . . Garrison Access . | . . . . . . Data Cores Recovered . | . . . . . . Used . | . . . . . . Hacking Detections 6 | . 5 . . . 1 Full Trace Events 4 | . 4 . . . . Feedback Events . | . . . . . . Feedback Blocked . | . . . . . . Robot Schematics Acquired . | . . . . . . Robots Built . | . . . . . . Authchips . | . . . . . . Time . | . . . . . . Total Robot Build Rating . | . . . . . . Part Schematics Acquired . | . . . . . . Parts Built . | . . . . . . Authchips . | . . . . . . Time . | . . . . . . Total Part Build Rating . | . . . . . . Parts Repaired 1 | . 1 . . . . Time 32 | . 32 . . . . Parts Recycled . | . . . . . . Recycled Matter . | . . . . . . Retrieved Matter 23 | . 23 . . . . Retrieved Components . | . . . . . . Parts Scanalyzed . | . . . . . . Part Schematics Acquired . | . . . . . . Parts Damaged . | . . . . . . Bothacking | -11 -10 -10 -10 -9 -8 ------------ Run | Yrd Mat Min Exi Min Mat Used RIF Installer . | . . . . . . Robots Hacked . | . . . . . . Non-combat . | . . . . . . Combat . | . . . . . . Robot Hacks Applied . | . . . . . . Relay Couplers Released . | . . . . . . Fabnet Peak Effective % . | . . . . . . Robots Rewired . | . . . . . . Allies Hacked . | . . . . . . Hacks Repelled . | . . . . . . Allies | -11 -10 -10 -10 -9 -8 -------- Run | Yrd Mat Min Exi Min Mat Total Allies . | . . . . . . Largest Group . | . . . . . . Highest-Rated Group . | . . . . . . Highest-Rated Ally . | . . . . . . Total Orders . | . . . . . . Ally Attacks . | . . . . . . Total Damage . | . . . . . . Kills . | . . . . . . Allies Corrupted . | . . . . . . Allies Melted . | . . . . . . Intel | -11 -10 -10 -10 -9 -8 ------- Run | Yrd Mat Min Exi Min Mat Active Infowar (turns) 1803 | 9 931 2 . 486 375 Sensors 863 | . . 2 . 486 375 Structural 362 | . . . . . 362 Seismic 1241 | 9 931 . . . 301 Robot Analysis Total . | . . . . . . Derelict Logs Recovered 2 | . . 1 . 1 . Drone Launches . | . . . . . . Drone Recoveries . | . . . . . . Exploration | -11 -10 -10 -10 -9 -8 ------------- Run | Yrd Mat Min Exi Min Mat Turns Passed 5303 | 135 2158 821 982 832 375 Spaces Moved 3152 | 69 1115 521 701 568 178 Core 1 | 1 . . . . . Treads . | . . . . . . Legs . | . . . . . . Wheels 3151 | 68 1115 521 701 568 178 Hover . | . . . . . . Flight . | . . . . . . Fastest Speed 50 | 50 80 140 140 140 155 Average Speed 134 | 88 125 140 140 140 156 Slowest Speed 245 | 90 175 140 140 140 245 Overloaded Moves . | . . . . . . Propulsion Burnouts . | . . . . . . Robots Hopped . | . . . . . . Potential Cave-ins 4 | . 4 . . . . Cave-ins Triggered . | . . . . . . Exploration Rate (%) 66 | 4 97 92 91 98 19 Regions Visited 5 Branch Regions 3 Pre-discovered Areas 1 | . . . . 1 . Known Exits Taken . | . . . . . . Unknown Exits Taken 5 | 1 1 1 1 1 . Scrap Searched 4 | . . 1 . 3 . Spaces Dug 114 | . 53 35 . 26 . Terrain Destroyed 677 | . 265 231 . 73 108 Melee . | . . . . . . Projectile 3 | . 3 . . . . AOE 674 | . 262 231 . 73 108 Terrain Rammed . | . . . . . . Walls Destroyed . | . . . . . . Machines Disabled . | . . . . . . Actions | -11 -10 -10 -10 -9 -8 --------- Run | Yrd Mat Min Exi Min Mat Total 3955 | 111 1726 581 702 596 239 Wait 453 | . 433 20 . . . Move 3147 | 68 1114 520 700 567 178 Hop . | . . . . . . Pick Up 51 | 8 27 1 1 6 8 Fast Attach 13 | 6 6 . . . 1 Attach 22 | 1 2 2 . 2 15 Detach 2 | . 1 . . . 1 Swap 43 | . 23 6 . 8 6 Drop 29 | . 17 1 1 5 5 Fire 195 | 28 103 31 . 8 25 Melee . | . . . . . . Ram . | . . . . . . Kick . | . . . . . . Crush . | . . . . . . Escape Stasis . | . . . . . . Rewire . | . . . . . . Trap . | . . . . . . Miscellaneous . | . . . . . . Route ------- -11/Scrapyard -10/Materials (discovered 4 exits: [*Mat x3] / [*Min]) -10/Mines (discovered 4 exits: [*Mat x2] / *Exi / [*Sub]) -10/Exiles (discovered 2 exits: [*Min x2]) -9/Mines (discovered 2 exits: *Mat x2) -8/Materials History --------- Turn | Location | Event 29 | -11/Scrapyard | Discovered new exit (range 15) 136 | -11/Scrapyard | Entered Materials 246 | -10/Materials | Discovered new exit (range 14) 319 | -10/Materials | Build established: Mutant 336 | -10/Materials | Discovered new exit (range 16) 654 | -10/Materials | Discovered new exit (range 15) 893 | -10/Materials | Discovered new exit (range 7) 1689 | -10/Materials | Build established: Scavenger-Mutant 2166 | -10/Materials | Repaired Rocket Launcher 2294 | -10/Materials | Entered Mines 2379 | -10/Mines | Discovered new exit (range 10) 2456 | -10/Mines | Deemed a non-threat by the Exiles lab entrance 2587 | -10/Mines | Found a damaged Exp. Sensor Array with a note attached 2590 | -10/Mines | Found Prototype Device 2590 | -10/Mines | Identified Exp. Sensor Array 2601 | -10/Mines | Discovered new exit (range 13) 2727 | -10/Mines | Build established: Mutant 2864 | -10/Mines | Learned Materials trap positions 2871 | -10/Mines | Discovered new exit (range 8) 3109 | -10/Mines | Discovered new exit (range 5) 3115 | -10/Mines | Entered Exiles 3115 | -10/Exiles | Found Exiles lab abandoned 3922 | -10/Exiles | Discovered new exit (range 14) 4082 | -10/Exiles | Discovered new exit (range 12) 4097 | -10/Exiles | Entered Mines 4153 | -9/Mines | Met a Derelict bent on vengeance 4395 | -9/Mines | Learned location of Recycling (-7) 4559 | -9/Mines | Received a Rocket Launcher from a helpful Derelict 4579 | -9/Mines | Found DCF Scrap (12 items) 4624 | -9/Mines | Discovered new exit (range 7) 4901 | -9/Mines | Discovered new exit (range 12) 4929 | -9/Mines | Entered Materials 4929 | -8/Materials | Evolved 4 slots: Power x1, Utility x3 4930 | -8/Materials | Loaded intel: 18 trap records 5304 | -8/Materials | Self-destructed Last Messages --------------- 05300_ The unstable cave ceiling collapses. 05301_ X-62 Marksman destroyed. 05301_ Penetrated by Slug. 05301_ Rocket Launcher destroyed. 05301_ U-05 Engineer builds a Door. 05302_ ALERT: Construction progress impeded, dispatching reinforcements to local area. 05302_ Penetrated by Slug. 05304_ Fusion Modulator explodes. 05304_ Rocket Launcher destroyed. 05304_ Destroyed Rocket Launcher. 05304_ Fusion Modulator explodes. 05304_ Destroyed Lgt. Ion Engine. 05304_ K-01 Serf destroyed. 05304_ A-02 Transporter destroyed. 05304_ Rnf. Ion Engine destroyed. 05304_ Destroyed Rnf. Ion Engine. 05304_ Hcp. Matter Pod destroyed. 05304_ Destroyed Hcp. Matter Pod. [Achievement: I Think I Know What's Going On] Map ----- +----------------------------------------------------+ | | | ?????????????????????????????????????????????????? | | ?????????????????????????????????????????????????? | | ?????????????????????????????????????????????????? | | ?????????????????????????????????????????????????? | | ?????????????????????????????????????????????????? | | ?????????????????????????????????????????????????? | | ?????????????????????????????????????????????????? | | ?????????????????????????????????????????????????? | | ?????????????????????????????????????????????????? | | ???????????????????????" ????????????????????????? | | ????????????????? # ? ???????????????????????? | | ????????????????? "???????????????????????? | | ???????????????? ???????????????????????? | | ??????????????? ! ##???????????????????? | | ?????????????### # ######????###??????????? | | ??????? ?????### T # ???? ##??????????? | | ? ??? H ???? k %x # ??"S ##??????????? | | ?? ?? ! """ # ?"" ##??????????? | | # ####### """ # ##??????????? | | ## #### w """ # ! ##??????????? | | ## #### / # ; ### ????????? | | ## #### "" #! = #+ #####????????? | | + #### S"" ;;% %[ u ????????? | | #! + ""u ; h u %???????????? | | #+" ## ;; @ ;;;##### ????????????? | | ? %!! ######;; !# ?????????? | | ? =% ###### ; # ?????????? | | ?### =/ ! ###??# ; ; ?????????? | | ?## ##??##; ; ?????????? | | ?## ####???#; ;###+?????????? | | ??# # ] ##?????#; ; ## ?????????? | | ##### ##?????## # "T" ##"???????????? | | #####""" ######### # /##????????????? | | #""" %#############+#############????????????? | | #""" + ! ############????????????? | | = # ############ # ??????????????????????? | | # ############ # ??????????????????????? | | [ #####"##????????## + ??????????????????????? | | [ ##### ##????????## # ??????????????????????? | | ##?## #########?## # ??????????????????????? | | ##?## #########?## ##??????????????????????? | | ##### # ] ! ##?## # ??????????????????????? | | ##+###### # ##?## # ??????????????????????? | | # # """" ##?## # ??????????????????????? | | # + """" ##?##^^^+ ??????????????????????? | | # # """" ##?##^^^# ??????????????????????? | | ## # ##?## # ?????????????????????? | | ## ############ ###?????????????????????? | | ## ########### ##?????????????????????? | +----------------------------------------------------+ Best States ------------- Heat Dissipation 31 Energy Generation 19 Energy Capacity 430 Matter Stores 300 Matter Capacity 500 Sight Range 16 Robot Scan Range 20 Terrain Scan Density 10 Armor Coverage 225 Evasion (%) 44 Item Schematics ----------------- None Robot Schematics ------------------ None Fabricated ------------ Nothing Repaired ---------- Rocket Launcher | 42% | -10/Materials Alien Tech Used ----------------- None Achievements -------------- I Think I Know What's Going On Challenges ------------ None Game ------ Seed GravmagGuidanceMount Manual? 0 Play Time 00:40:59 Cumulative 151.5 hours Start 2025.06.12 @ 20:12:50 End 2025.06.12 @ 20:51:57 Sessions 1 Manual Loads 0 Difficulty Rogue Special Mode None Game No. 102 Rogue 102 Adventurer 0 Explorer 0 Win Type - Total 1 Types 1/0/0/0/0/0/0/0/0/0 Lore% 50 Gallery% 52 Achievement% 47 Wizard Run 0 Options --------- Layout 1 ASCII 0 Keyboard 0 Movement Mouse Keybinds 0 Fullscreen 1 Font 24/Smallcaps Map View 50x35 Zoom Use 0% Tactical HUD 1 Map Filters NONE Filters NONE Steam 1 RUN: 969e749b-d278-4e41-b86b-5653a49ffa9e